Cogmind - Beta 17.1 @@@ ROGUE MODE // 2026.09.08 @ 21:13:34 Player: Cereal Killer Result: Destroyed by G6-NW1(R) with Subdweller Laser Performance ------------- Evolutions (0) 0 Regions Visited (2) 400 Robots Destroyed (25) 125 Value Destroyed (679) 679 Prototype IDs (3) 60 Alien Tech Used (0) 0 Bonus (8000) 8000 TOTAL SCORE: 9264 Bonus ------- Prayed to X0-1V1 5000 Major X0-1V1 Interference 3000 Cogmind --------- Core Integrity 0/190 Matter 207/300 Energy 93/100 System Corruption 2% Temperature Cool (6) Movement Rolling (100) Location -10/Subcaves Parts ------- > --- POWER (1) -------- Subdweller Power Source > --- PROPULSION (2) --- Compact Wheel > --- UTILITY (2) ------ X0-1V1's Piety Tracker > --- WEAPON (2) ------- Beam Cannon > --- INVENTORY (5) ---- Disposable Heat Sink Huge Storage Unit Peak State ------------ > --- POWER ------------ Subdweller Power Source > --- PROPULSION ------- Light Treads Compact Wheel > --- UTILITY ---------- Structural Scanner X0-1V1's Piety Tracker > --- WEAPON ----------- Beam Cannon Grenade Launcher > --- INVENTORY -------- Disposable Heat Sink Huge Storage Unit [Rating: 20] Favorites ----------- Power Light Ion Engine Engine Light Ion Engine Propulsion Light Treads Treads Light Treads Wheel Compact Wheel Utility Structural Scanner Device Structural Scanner Storage Small Storage Unit Weapon Light Cannon Energy Cannon Beam Cannon Ballistic Gun Assault Rifle Ballistic Cannon Light Cannon Launcher Grenade Launcher Build | -11 -10 -10 ------- Run | Yrd Mat Sub Slots Evolved . | . . . Power . | . . . Propulsion . | . . . Utility . | . . . Weapon . | . . . Parts Attached 18 | 6 8 4 Power 3 | 1 1 1 Engine 3 | 1 1 1 Core . | . . . Reactor . | . . . Propulsion 5 | 2 3 . Treads 2 | . 2 . Leg . | . . . Wheel 3 | 2 1 . Hover . | . . . Flight . | . . . Utility 3 | 1 1 1 Device 2 | . 1 1 Storage 1 | 1 . . Processor . | . . . Hackware . | . . . Protection . | . . . Artifact . | . . . Weapon 7 | 2 3 2 Energy Gun . | . . . Energy Cannon 1 | . . 1 Ballistic Gun 2 | 2 . . Ballistic Cannon 3 | . 3 . Launcher 1 | . . 1 Special Weapon . | . . . Impact Weapon . | . . . Slashing Weapon . | . . . Piercing Weapon . | . . . Special Melee Weapon . | . . . Unidentified Prototypes 1 | . . 1 Parts Lost 11 | . 4 7 Power 2 | . 1 1 Propulsion 4 | . 2 2 Utility 1 | . . 1 Weapon 4 | . 1 3 Highest Loss Streak 3 | . 2 3 To Critical Strikes 1 | . . 1 Average Backups 4 | 3 6 3 Power . | . . . Propulsion 1 | 1 2 . Utility 1 | . . 1 Weapon 1 | . 2 . Tool/Special . | . . . Unused Backups 4 | . 2 2 Power . | . . . Propulsion . | . . . Utility 3 | . 1 2 Weapon 1 | . 1 . Tool/Special . | . . . Average Slot Usage (%) 87 | . 89 86 Engine 11 | . 11 12 Treads 14 | . 5 19 Wheel 8 | . 21 . Device 19 | . 7 27 Storage 5 | . 14 . Energy Cannon 6 | . . 11 Ballistic Gun 4 | . 12 . Ballistic Cannon 10 | . 15 8 Launcher 3 | . . 5 Peak Build Rating 20 | 6 8 20 Average Rating 13 | 4 6 18 On Entrance 4 | . 6 8 Avg Prop Armor Cover (%) 13 | . . 13 Naked Turns . | . . . Heaviest Build 15 | 12 15 13 Greatest Support 40 | 32 40 40 Greatest Overweight (x) . | . . . Average Overweight (x) . | . . . Largest Inventory Capacity 8 | 8 8 5 Average Capacity 6 | 7 8 5 Most Carried 8 | 6 8 5 Average Carried 4 | 3 6 3 Final Capacity 8 | 8 8 5 Final Carried 5 | 4 5 2 Class Distribution -------------------- 100% | Mutant Dominant Class ---------------- Mutant | -10/Materials Mutant | -10/Subcaves Resources | -11 -10 -10 ----------- Run | Yrd Mat Sub Matter Collected 783 | 260 382 141 Remotely . | . . . Salvage Created 738 | . 501 237 Parts 38 | . 25 13 Haulers Intercepted 1 | . 1 . Recyclers Shooed . | . . . Parts Field Recycled . | . . . Retrieved Matter . | . . . Parts Self-Destructed 9 | . . 9 Prevented . | . . . Parts Restored . | . . . Kills | -11 -10 -10 ------- Run | Yrd Mat Sub Combat Hostiles Destroyed 22 | . 12 10 Guns 2 | . 2 . Cannons 15 | . 10 5 AOE 5 | . . 5 Classes Destroyed 6 | . 5 1 Hauler 1 | . 1 . Recycler 1 | . 1 . Watcher 1 | . 1 . Swarmer 7 | . 3 4 Grunt 9 | . 9 . Subdweller 6 | . . 6 Best Kill Streak 6 | . 6 4 Combat Bots Only 6 | . 6 4 Max Kills in Single Turn 2 | . 1 2 Gunslinging . | . . . Exploded 2 | . . 2 Melee . | . . . Uniques/NPCs Destroyed . | . . . Combat | -11 -10 -10 -------- Run | Yrd Mat Sub Hostile Shots Fired 147 | . 80 67 Missed 46 | . 23 23 Hits 101 | . 57 44 Projectile 101 | . 57 44 Critical Strikes 3 | . 1 2 Damage Taken 1469 | . 601 868 Core 303 | . 64 239 Absorbed by Shields . | . . . Core Remaining (%) 100 | 100 . . Volleys Fired 93 | . 45 48 Largest 2 | . 2 2 Hottest 90 | . 60 90 Shots Fired 156 | . 89 67 Gun 38 | . 38 . Cannon 107 | . 51 56 Launcher 11 | . . 11 Special . | . . . Kinetic 109 | . 89 20 Thermal 36 | . . 36 Explosive 11 | . . 11 Electromagnetic . | . . . Robot Hit Streak 24 | . 5 24 Robot Miss Streak 4 | . 3 4 Penetration Max . | . . . Secondary Targets . | . . . Shots Hit Robots 97 | . 53 44 Core Hits 36 | . 21 15 Critical Kills . | . . . Critical Parts Destroyed . | . . . Critical Strikes 3 | . 3 . Blast 3 | . 3 . Melee Attacks . | . . . Impact . | . . . Slashing . | . . . Piercing . | . . . Sneak Attacks . | . . . Combat Hostiles . | . . . Follow-up Attacks . | . . . Damage Inflicted 1815 | . 823 992 Guns 297 | . 297 . Cannons 1229 | . 526 703 Explosions 289 | . . 289 Melee . | . . . Ramming . | . . . Kinetic 1053 | . 823 230 Thermal 473 | . . 473 Explosive 289 | . . 289 Electromagnetic . | . . . Impact . | . . . Slashing . | . . . Piercing . | . . . Highest Corruption 2 | . . 2 Average Corruption 2 | . . 2 Corruption Purged . | . . . Corruption Blocked . | . . . Effects 7 | . . 7 Message Errors 4 | . . 4 Matter Fused 1 | . . 1 Energy Discharges 2 | . . 2 Overload Shots . | . . . Overflow Damage . | . . . Projectiles . | . . . Explosions . | . . . Melee . | . . . Knockbacks 6 | . 5 1 Impact . | . . . Kinetic 6 | . 5 1 Secondary . | . . . Self-Inflicted Damage 36 | . . 36 Shots 3 | . . 3 Rammed . | . . . Targets Rammed . | . . . Kicked . | . . . Crushed . | . . . Highest Temperature 58 | . 58 . Average Temperature 22 | . 22 . Received Heat Transfer 375 | . 231 144 Siege Activations . | . . . Martial Activations . | . . . Shielding Activations . | . . . Robots Disrupted . | . . . Combat Hostiles . | . . . Robots Corrupted . | . . . Combat Hostiles . | . . . Parts Fried . | . . . Impact Corruptions . | . . . Robots Melted . | . . . Combat Hostiles . | . . . Parts Melted 4 | . . 4 Heat Transferred 999 | . . 999 Parts Sabotaged . | . . . Parts Stolen . | . . . Parts Stripped . | . . . Power Chain Reactions . | . . . Alert | -11 -10 -10 ------- Run | Yrd Mat Sub Maximum Alert Level . | . . . Low Security (%) 100 | 100 100 . Level 1 . | . . . Level 2 . | . . . Level 3 . | . . . Level 4 . | . . . Level 5 . | . . . High Security . | . . . Max Security . | . . . Peak Influence 181 | . 181 . Initial . | . . . Average 59 | . 64 . Influence Increases 540 | . 370 170 Destroy 0b10 Robot/C 320 | . 240 80 Destroy 0b10 Robot/NC 15 | . 15 . Destroy Leader 54 | . 54 . Destroy Structure 1 | . 1 . Lose Combat Pursuer 150 | . 60 90 Influence Decreases 540 | . 245 295 Entered New Map 61 | . . 61 Time Decay 409 | . 205 204 Lost Part 70 | . 40 30 Squads Dispatched 4 | . 4 . Investigation 1 | . 1 . Extermination . | . . . Reinforcement 3 | . 3 . Assault . | . . . Garrison . | . . . Intercept . | . . . Searches Triggered . | . . . Construction Impeded . | . . . Haulers Reinforced . | . . . Active Scanning Responses . | . . . Cargo Convoy Interrupts . | . . . Stealth | -11 -10 -10 --------- Run | Yrd Mat Sub Distress Signals 1 | . 1 . Communications Jammed . | . . . Distress Signals . | . . . Times Spotted 40 | . 23 17 Peak Tracking Total 7 | . 5 7 Tactical Retreats 3 | . 2 1 Traps | -11 -10 -10 ------- Run | Yrd Mat Sub Traps Triggered 1 | . 1 . Indirectly . | . . . Trap Hack Attempts . | . . . Triggered . | . . . Disarmed . | . . . Reprogrammed . | . . . Reused . | . . . Traps Extracted . | . . . Installed . | . . . Triggered . | . . . Machines | -11 -10 -10 ---------- Run | Yrd Mat Sub Machines Disabled 1 | . . 1 Max in Single Turn 1 | . . 1 Machines Repaired . | . . . Machines Dismantled . | . . . Machines Sabotaged . | . . . Overloaded Fab Kills . | . . . Hacking | -11 -10 -10 --------- Run | Yrd Mat Sub Machines Accessed 3 | . 2 1 Terminals 2 | . 2 . Fabricators . | . . . Repair Stations . | . . . Recycling Units . | . . . Scanalyzers . | . . . Garrison Access . | . . . Total Hacks 8 | . 4 4 Successful 6 | . 2 4 Failed 2 | . 2 . Catastrophic . | . . . Database Lockouts . | . . . Manual 1 | . 1 . Terminals 4 | . 4 . Fabricators . | . . . Repair Stations . | . . . Recycling Units . | . . . Scanalyzers . | . . . Garrison Access . | . . . Terminal Hacks 6 | . 2 4 Record 4 | . . 4 Prototype ID Bank 1 | . 1 . Locate Traps 1 | . 1 . Fabricator Hacks . | . . . Repair Station Hacks . | . . . Recycling Unit Hacks . | . . . Scanalyzer . | . . . Garrison Access Hacks . | . . . Unauthorized Hacks . | . . . Terminals . | . . . Fabricators . | . . . Repair Stations . | . . . Recycling Units . | . . . Scanalyzers . | . . . Garrison Access . | . . . Data Cores Recovered . | . . . Used . | . . . Hacking Detections 2 | . 2 . Full Trace Events . | . . . Feedback Events . | . . . Feedback Blocked . | . . . Robot Schematics Acquired . | . . . Robots Built . | . . . Authchips . | . . . Time . | . . . Total Robot Build Rating . | . . . Part Schematics Acquired . | . . . Parts Built . | . . . Authchips . | . . . Time . | . . . Total Part Build Rating . | . . . Part Studies Acquired . | . . . Parts Repaired . | . . . Time . | . . . Parts Recycled . | . . . Recycled Matter . | . . . Retrieved Matter . | . . . Retrieved Components . | . . . Parts Scanalyzed . | . . . Part Schematics Acquired . | . . . Parts Damaged . | . . . Bothacking | -11 -10 -10 ------------ Run | Yrd Mat Sub Used RIF Installer . | . . . Robots Hacked . | . . . Non-combat . | . . . Combat . | . . . Robot Hacks Applied . | . . . Relay Couplers Released . | . . . Fabnet Peak Effective % . | . . . Robots Rewired . | . . . Allies Hacked . | . . . Hacks Repelled . | . . . Allies | -11 -10 -10 -------- Run | Yrd Mat Sub Total Allies . | . . . Largest Group . | . . . Highest-Rated Group . | . . . Highest-Rated Ally . | . . . Total Orders . | . . . Ally Attacks . | . . . Total Damage . | . . . Kills . | . . . Allies Corrupted . | . . . Allies Melted . | . . . X0-1V1 Amusement Gains 17 | . 17 . Average Entertainment 9 | . 17 9 Good Acts 3 | . . 3 Bad Acts 5 | . . 5 Intel | -11 -10 -10 ------- Run | Yrd Mat Sub Active Infowar (turns) 1525 | . 416 1109 Structural 1525 | . 416 1109 Robot Analysis Total . | . . . Derelict Logs Recovered 1 | . . 1 Drone Launches . | . . . Drone Recoveries . | . . . Exploration | -11 -10 -10 ------------- Run | Yrd Mat Sub Turns Passed 1909 | 57 721 1131 Spaces Moved 1189 | 48 506 635 Core 13 | 13 . . Treads 673 | . 79 594 Legs . | . . . Wheels 503 | 35 427 41 Hover . | . . . Flight . | . . . Fastest Speed 50 | 50 100 100 Average Speed 133 | 86 109 156 Slowest Speed 160 | 100 160 160 Overloaded Moves . | . . . Propulsion Burnouts . | . . . Robots Hopped . | . . . Potential Cave-ins . | . . . Cave-ins Triggered . | . . . Exploration Rate (%) 44 | 3 84 47 Regions Visited 2 Branch Regions 1 Pre-discovered Areas . | . . . Known Exits Taken . | . . . Unknown Exits Taken 2 | 1 1 . Scrap Searched . | . . . Spaces Dug . | . . . Terrain Destroyed 54 | . . 54 Melee . | . . . Projectile . | . . . AOE 54 | . . 54 Terrain Rammed . | . . . Walls Destroyed . | . . . Machines Disabled . | . . . Actions | -11 -10 -10 --------- Run | Yrd Mat Sub Total 1358 | 63 587 708 Wait 33 | . 18 15 Move 1187 | 47 505 635 Hop . | . . . Pick Up 19 | 10 7 2 Fast Attach 3 | . 3 . Attach 15 | 6 4 5 Detach . | . . . Swap 3 | . 1 2 Drop 5 | . 4 1 Fire 93 | . 45 48 Melee . | . . . Ram . | . . . Kick . | . . . Crush . | . . . Escape Stasis . | . . . Rewire . | . . . Trap . | . . . Miscellaneous . | . . . Route ------- -11/Scrapyard -10/Materials (discovered 5 exits: [*Mat x3] / [*Min] / *Sub) -10/Subcaves (discovered 2 exits: Mat / Rec) History --------- Turn | Location | Event 12 | -11/Scrapyard | Discovered new exit (range 16) 58 | -11/Scrapyard | Entered Materials 309 | -10/Materials | Build established: Mutant 345 | -10/Materials | Discovered new exit (range 13) 409 | -10/Materials | Discovered new exit (range 16) 551 | -10/Materials | Discovered new exit (range 10) 671 | -10/Materials | Discovered new exit (range 12) 745 | -10/Materials | Discovered new exit (range 10) 759 | -10/Materials | Prayed at D.C.S.S. Altar Unit 779 | -10/Materials | Entered Subcaves 784 | -10/Subcaves | Learned Materials stockpile data 890 | -10/Subcaves | Visited Clippyterm 895 | -10/Subcaves | Identified exit to Recycling 895 | -10/Subcaves | Identified exit to Materials 895 | -10/Subcaves | Learned 40 Factory zone layouts 934 | -10/Subcaves | Disturbed a concealed Subdweller 939 | -10/Subcaves | X0-1V1 whisked you away to safety 1225 | -10/Subcaves | Core integrity fell below 50% 1256 | -10/Subcaves | Core integrity fell below 20% 1258 | -10/Subcaves | Core integrity restored by X0-1V1 (+37) 1284 | -10/Subcaves | Lost 3 parts (1p1n1w) 1657 | -10/Subcaves | X0-1V1 tapped a No Entrance sign 1860 | -10/Subcaves | X0-1V1 caused items to flee you 1865 | -10/Subcaves | Ranged accuracy permanently improved by X0-1V1 (+6%; -60 max core) 1910 | -10/Subcaves | Destroyed by G6-NW1(R) with Subdweller Laser Last Messages --------------- 01699_ L6-VAR(u) deconstructs Twisted Machinery. 01745_ A&BYA| SQCCR9GHHCLPLF%JBJ 01766_ X0-1V1: "Use it or lose it, I always say." 01766_ Lgt. Treads fused. 01838_ System corrupted: Energy discharge (-36). 01854_ CDLPK EGP9RTXOR7G&6HWQJL 01860_ X0-1V1: "Your visage is terrifying!" 01865_ X0-1V1: "Any self-respecting god will have their pound of flesh." (permanent -60 core integrity, +6% ranged accuracy) 01880_ OJO IUN1NECAKS/ BZ=>/SL 01884_ B0-5RP(R) destroyed. 01888_ Subatomizers dissect the Sub. Power Source. 01888_ Structural Scanner destroyed. 01890_ Lgt. Treads destroyed. 01908_ Grenade Launcher destroyed. 01910_ X0-1V1 chortles! Map ----- +----------------------------------------------------+ | ????????????????????????? # ???? # #### ???????? | | ????????????????????????? ####??# #### ?????? | | ?????????????????????????? ####?? ?????? | | ??????????????????????????? ####? ??????? | | ??????????????????????????? #### ???????? | | ???????????????????????????# ### ##???????? | | ?????????######???????????### ###??????? | | ????????##########???????#### ####?????? | | ???????#### ######??####### ###?????? | | ???????### ###??###### ##?????? | | ???????## ##??## ## ##?????? | | ???????## ##??## ####?????? | | ???????### ###?## ####?????? | | ???????### ###### ##?????? | | ???????## ## ###### ###????? | | ???????## #### # # ##????? | | ???????## #### ! #####????? | | ???????## #### [% ###### #######????? | | ???????## #### * ###### ####???????? | | ???????## #### ######??## ##????????? | | ???????## ## ######??## ##????????? | | ???????## ## ### ######## ##????????? | | ???????## # ########## ###????????? | | ???????## #############????????? | | ???????### #### R ######????????? | | ???????#### ##### @ ###???????? | | ????????### ###### ### ######????? | | ?????????######?## ##### #####????? | | ?????????#####??## ##### ##### ##????? | | ????????????????## ###### ###### ##????? | | ????????????????### ####### ## ## ##????? | | ????????????????####### #### ## ###????? | | ?????######??????### ## ### ####????? | | ????#########?###### #######?????? | | ????### ######### ######??????? | | ????## #### # ##### ###??????????? | | ????### ###### ######??????????? | | ?????### ##### ###########??????? | | ??????###### # ##### ###############?????? | | ??????####### #### ###########?#### ###?????? | | ???####### ### #### ############# ###????? | | ???##### ### ##### ### ##### ####???? | | ???## # " #### ### ##??# ###???? | | ???## """ #### ###?### ##???? | | ???## """"" ### ######## ###??? | | ???## """ # # ## ###?#### ###??? | | ###### " #### ## " ###### ##??? | | ###### #### ### " ##### ##??? | | #?## # ##### "# " #### ##??? | | ### ########## " ##??? | +----------------------------------------------------+ Best States ------------- Heat Dissipation 25 Energy Generation 15 Energy Capacity 200 Matter Stores 300 Matter Capacity 300 Sight Range 16 Terrain Scan Density 10 Evasion (%) 50 Recoil Reduction 2 Item Schematics ----------------- None Robot Schematics ------------------ None Fabricated ------------ Nothing Repaired ---------- Nothing Studied --------- None Alien Tech Used ----------------- None Achievements -------------- None Challenges ------------ None Game ------ Seed DispersionGrapheneEdition Manual? 0 Play Time 00:12:28 Cumulative 366.1 hours Start 2026.09.08 @ 20:59:07 End 2026.09.08 @ 21:13:34 Sessions 1 Manual Loads 0 Difficulty Rogue Special Mode None Game No. 277 Rogue 268 Adventurer 9 Explorer 0 Win Type - Total 5 Types 4/0/0/1/0/0/0/0/0/0 Lore% 88 Gallery% 74 Achievement% 56 Wizard Run 0 Options --------- Layout 1 ASCII 0 Keyboard 0 Movement Numpad Keybinds 0 Fullscreen 1 Font 24/Smallcaps Map View 50x35 Zoom Use 0% Tactical HUD 1 Map Filters NONE Filters NONE Steam 1 RUN: 5687fac1-d9a3-4739-bc71-6f2eb7a123e2